bitfinex/quotes_ETHUSD_20241120
["timestamp","ask_amount","ask_price","bid_price","bid_amount"]
[1732066114451,0.8329,3102.2,3101.2,0.24041836]
[1732066114772,0.8329,3102.2,3101.3,0.24041836]
[1732066114975,0.8329,3102.2,3100.9,0.0644839]
[1732066115159,0.8329,3102.2,3101.0,0.24034054]
[1732066115366,0.8329,3102.2,3101.1,0.24034054]
[1732066115537,0.8329,3102.0,3101.2,0.24034054]
[1732066115730,0.8329,3102.0,3101.3,0.24034054]
[1732066115731,0.06446412,3101.9,3101.3,0.24034054]
[1732066115934,0.06446412,3101.9,3100.7,0.06448383]
[1732066116244,0.8329,3102.0,3100.8,3.24032428]
[1732066116465,0.8329,3102.0,3100.9,0.30480813]
[1732066116755,0.8329,3102.0,3101.0,0.24032428]
[1732066116955,0.8329,3102.0,3101.1,0.24032428]
[1732066117215,0.8329,3102.0,3101.2,0.24032428]
[1732066117429,0.8329,3102.0,3101.3,0.24032428]
[1732066117624,0.8329,3102.0,3100.8,3.0]
[1732066117810,0.8329,3102.0,3100.9,0.30478084]
[1732066118011,0.8329,3102.0,3101.0,0.24029694]
[1732066118311,0.8329,3102.0,3101.1,0.24029694]
[1732066118484,0.8329,3102.0,3101.2,0.24029694]
[1732066118827,0.8329,3102.0,3101.3,0.24029694]
[1732066119116,0.8329,3102.0,3100.9,0.06448372]
[1732066119293,0.8329,3102.0,3101.0,0.24027528]
[1732066119493,0.8329,3102.0,3101.1,0.24027528]
[1732066119706,0.8329,3102.0,3101.2,0.24027528]
[1732066120018,0.8329,3102.0,3100.5,0.55]
[1732066120190,3.22327,3102.5,3100.6,0.30476814]
[1732066120191,0.75,3101.8,3100.6,0.30476814]
[1732066120397,0.75,3101.6,3100.7,0.2402736]
[1732066120582,0.75,3101.6,3100.8,3.2402736]
[1732066120782,0.75,3101.6,3100.9,0.2402736]
[1732066121075,0.75,3101.6,3101.0,0.2402736]
[1732066121425,0.75,3101.6,3101.1,0.2402736]
[1732066121584,0.75,3101.6,3100.5,0.06448629]
[1732066121787,0.75,3101.6,3100.6,0.24029532]
[1732066122096,0.75,3101.6,3100.7,0.24029532]
[1732066122422,0.75,3101.6,3100.8,3.24029532]
[1732066122624,0.75,3101.6,3100.9,0.24029532]
[1732066122795,0.75,3101.6,3101.0,0.24029532]
[1732066122994,0.75,3101.6,3101.1,0.24029532]
[1732066123301,0.75,3101.6,3100.8,3.0]
[1732066123302,0.75,3101.6,3101.2,0.24033684]
[1732066123507,0.75,3101.6,3100.8,3.0]
[1732066123720,0.75,3101.6,3100.9,0.24033717]
[1732066123895,0.75,3101.6,3100.8,3.0]
[1732066124090,0.75,3101.6,3101.0,0.24033713]
[1732066124290,0.81446412,3101.5,3101.1,0.24033713]
[1732066124499,0.81446412,3101.5,3099.7,0.06449664]
[1732066124704,0.75,3101.3,3099.8,0.24038706]
[1732066125035,0.40386441,3101.4,3099.7,0.06449664]
[1732066125036,0.81446412,3101.2,3099.9,0.24038706]
[1732066125337,0.81446412,3101.2,3100.0,0.30488764]
[1732066125499,0.81446412,3101.2,3100.1,0.24038706]
[1732066125840,0.81446412,3101.2,3100.2,0.24038706]
[1732066125998,0.81446412,3101.2,3100.3,0.24038706]
[1732066126336,0.06446412,3101.1,3100.4,0.24038706]
[1732066126537,0.06446412,3101.1,3100.5,0.24038706]
[1732066126843,0.06446412,3101.1,3099.8,0.06449827]
[1732066126993,0.75,3101.0,3099.9,0.24037107]
[1732066127196,0.75,3101.0,3100.1,0.55]
[1732066127392,0.75,3101.0,3100.2,0.30486667]
[1732066127628,0.75,3102.0,3100.7,3.0]
[1732066127793,0.75,3102.0,3100.8,0.30486211]
[1732066127997,0.75,3102.0,3100.7,3.0]
[1732066127998,0.75,3102.0,3100.9,0.24037107]
[1732066128235,0.75,3102.0,3101.0,0.24037107]
[1732066128413,0.75,3102.0,3101.1,0.24037107]
[1732066128590,0.75,3102.0,3100.2,0.38639099]
[1732066128591,0.75,3102.0,3100.7,3.0]
[1732066128896,0.75,3102.0,3100.8,0.30480215]
[1732066129103,0.75,3102.0,3100.9,0.24031316]
[1732066129396,0.75,3102.0,3101.0,0.24031316]
[1732066129604,0.75,3102.0,3101.1,0.24031316]
[1732066129942,0.75,3102.0,3101.2,0.2402981]
[1732066130149,0.75,3102.0,3100.4,0.3219]
[1732066130150,0.75,3102.0,3100.7,3.0]
[1732066130307,0.75,3102.0,3100.8,0.06448762]
[1732066130506,0.75,3102.0,3100.9,0.24028556]
[1732066130825,0.75,3102.0,3101.0,0.30476588]
[1732066131029,0.75,3102.0,3101.0,0.06448032]
[1732066131344,0.75,3102.0,3101.1,0.24026682]
[1732066131637,0.75,3102.0,3101.2,0.24026682]
[1732066131937,0.06446412,3101.9,3101.3,0.24026682]
[1732066132148,0.33606607,3102.6,3100.7,3.38638805]
[1732066132149,0.8084,3101.8,3100.7,3.38638805]
[1732066132353,0.8084,3101.8,3100.8,0.24037037]
[1732066132524,0.87286412,3101.7,3100.9,0.24037037]
[1732066132724,0.87286412,3101.7,3101.0,0.24037037]
[1732066132936,0.87286412,3101.7,3100.7,3.0]
[1732066133129,0.8084,3101.5,3100.8,0.24037471]
[1732066133337,0.8084,3101.5,3100.9,0.24037471]
[1732066133565,0.8084,3101.5,3101.0,0.24037471]
[1732066134113,0.8084,3101.5,3101.1,0.24037471]
[1732066134450,0.8084,3101.5,3100.3,0.3219]
[1732066134632,0.8084,3101.5,3100.7,3.0]
[1732066134950,0.8084,3101.5,3100.8,0.24054266]
[1732066135180,0.8084,3101.5,3100.9,0.24054266]
[1732066135311,0.8084,3101.5,3101.0,0.24054266]
[1732066135511,0.8084,3101.5,3101.1,0.24054266]
[1732066135714,0.8084,3101.5,3100.5,3.0]
[1732066136033,0.8084,3101.5,3100.6,0.24061851]
[1732066136359,0.8084,3101.5,3100.7,0.24061851]
[1732066136653,0.8084,3101.5,3100.8,0.24061851]
[1732066137017,0.8084,3101.5,3100.6,0.06449082]
[1732066137018,0.8084,3101.5,3100.9,0.24061851]
[1732066137225,0.8084,3101.5,3101.0,0.24061851]
[1732066137428,0.8084,3101.5,3101.1,0.24061851]
[1732066137614,0.8084,3101.5,3100.5,3.06449084]
[1732066137947,0.8084,3101.5,3100.6,0.24077156]
[1732066138152,0.8084,3101.5,3100.7,0.24077156]
[1732066138453,0.8084,3101.5,3100.8,0.24077156]
[1732066138611,0.8084,3101.5,3100.9,0.24077156]
[1732066138950,0.8084,3101.5,3101.0,0.24077156]
[1732066139257,0.8084,3101.5,3101.1,0.24077156]
[1732066139467,0.8084,3101.5,3100.5,0.0644909]
[1732066139777,0.8084,3101.5,3100.6,0.24078061]
[1732066140118,0.8084,3101.5,3100.7,0.24078061]
[1732066140324,0.8084,3101.5,3100.8,0.24078061]
[1732066140528,0.8084,3101.5,3100.9,0.24078061]
[1732066140727,0.8084,3101.5,3101.0,0.24078061]
[1732066140959,0.8084,3101.5,3101.1,0.24078061]
[1732066141118,0.8084,3101.5,3101.2,0.24078061]
[1732066141317,0.8084,3101.5,3100.5,3.06449093]
[1732066141517,0.8084,3101.5,3100.6,0.24080073]
[1732066141742,0.8084,3101.5,3100.7,0.24080073]
[1732066141944,0.8084,3101.5,3100.5,3.06449093]
[1732066142266,0.8084,3101.5,3100.6,0.2407985]
[1732066143017,0.8084,3101.5,3100.7,0.2407985]
[1732066143258,0.8084,3101.5,3100.8,0.2407985]
[1732066143453,0.8084,3101.5,3100.9,0.2407985]
[1732066143682,0.8084,3101.5,3101.0,0.2407985]
[1732066143858,0.8084,3101.5,3101.1,0.2407985]
[1732066144176,0.8084,3101.5,3100.5,3.06449099]
[1732066144394,0.8084,3101.5,3100.6,0.24084895]
[1732066144543,0.8084,3101.5,3100.7,0.24084895]
[1732066144740,0.8084,3101.5,3100.8,0.24084895]
[1732066144983,0.8084,3101.5,3100.9,0.24084895]
[1732066145148,0.8084,3101.5,3101.0,0.24084895]
[1732066145344,0.8084,3101.5,3100.5,3.06449104]
[1732066145576,0.8084,3101.5,3101.1,0.24086068]
[1732066145770,0.8084,3101.5,3101.2,0.24086068]
[1732066146086,0.8084,3101.5,3100.3,0.06449106]
[1732066146248,0.8084,3101.5,3100.5,3.38639106]
[1732066146447,0.8084,3101.5,3100.6,0.79086938]
[1732066146653,0.8084,3101.5,3100.8,0.3219]
[1732066146852,0.8084,3101.5,3101.0,0.3219]
[1732066147054,0.8084,3101.5,3101.1,0.24086938]
[1732066147359,0.8084,3101.5,3101.0,0.3219]
[1732066147360,0.8084,3101.5,3101.2,0.24086938]
[1732066147562,0.8084,3101.5,3101.3,0.24086938]
[1732066147775,0.8084,3101.5,3101.4,0.24086938]
[1732066149285,0.8084,3101.5,3100.6,0.3219]
[1732066149495,0.8084,3101.5,3100.7,0.24088647]
[1732066149677,0.8084,3101.5,3100.8,0.30538099]
[1732066150013,0.8084,3101.5,3100.9,0.24088647]
[1732066150297,0.8084,3101.5,3100.6,0.38639179]
[1732066150298,0.8084,3101.5,3101.0,0.24088647]
[1732066150499,0.8084,3101.5,3101.1,0.24088647]
[1732066150672,0.8084,3101.5,3101.2,0.24088647]
[1732066150850,0.8084,3101.5,3101.3,0.24088647]
[1732066151051,0.8084,3101.5,3101.4,0.24088647]
[1732066151768,0.8084,3101.5,3100.9,3.0]
[1732066152093,0.8084,3101.5,3101.0,0.24082375]
[1732066152312,0.8084,3101.5,3101.0,0.24082509]
[1732066152601,0.8084,3101.5,3101.1,0.24082509]
[1732066152895,0.8084,3101.5,3101.2,0.24082509]
[1732066153056,0.8084,3101.5,3101.3,0.24082509]
[1732066153259,0.8084,3101.5,3101.4,0.24082509]
[1732066155081,0.8084,3101.5,3100.6,0.3219]
[1732066155254,0.8084,3101.5,3100.7,0.24088026]
[1732066155456,0.8084,3101.5,3100.8,0.24088026]
[1732066155662,0.8084,3101.5,3100.9,0.24088026]
[1732066155898,0.8084,3101.5,3101.0,0.24088026]
[1732066156104,0.8084,3101.5,3101.1,0.24088026]
[1732066156279,0.8084,3101.5,3100.6,0.3219]
[1732066156593,0.8084,3101.5,3100.7,0.24093829]
[1732066156952,0.8084,3101.5,3100.8,0.24093829]
[1732066157260,0.8084,3101.5,3100.9,0.24093829]
[1732066157468,0.8084,3101.5,3101.0,0.24093829]
[1732066157691,0.8084,3101.5,3101.1,0.24093829]
[1732066157904,0.8084,3101.5,3101.2,0.24093829]
[1732066158099,0.8084,3101.5,3100.6,0.3219]
[1732066158272,0.8084,3101.5,3100.7,0.2409719]
[1732066158480,0.8084,3101.5,3100.6,0.3219]
[1732066158877,0.8084,3101.5,3100.7,0.24097217]
[1732066159194,0.8084,3101.5,3100.8,0.30546604]
[1732066159363,0.8084,3101.5,3100.9,0.24097217]
[1732066159568,0.8084,3101.5,3101.0,0.24097217]
[1732066159767,0.8084,3101.5,3101.1,0.24097217]
[1732066160019,0.8084,3101.5,3101.2,0.24097217]
[1732066160312,0.8084,3101.5,3100.7,0.38638967]
[1732066160313,0.8084,3101.5,3101.3,0.24097217]
[1732066160465,0.8084,3101.5,3101.4,0.24097217]
[1732066161803,0.8084,3101.5,3100.7,0.38638967]
[1732066162012,0.8084,3101.5,3101.4,0.24094851]
[1732066163549,0.8084,3101.5,3100.6,0.3219]
[1732066163740,0.8084,3101.5,3100.8,0.3219]
[1732066164042,0.8084,3101.5,3100.9,0.56285228]
[1732066164240,0.8084,3101.5,3101.0,0.24095228]
[1732066164448,0.8084,3101.5,3101.1,0.24095228]
[1732066164762,0.8084,3101.5,3101.2,0.24095228]
[1732066165061,0.8084,3101.5,3101.3,0.24095228]
[1732066165565,0.8084,3101.5,3101.4,0.24095228]
[1732066167662,0.8084,3101.5,3100.6,0.38638735]
[1732066167844,0.8084,3101.5,3100.8,0.3219]
[1732066168166,0.8084,3101.5,3100.9,0.24096631]
[1732066168533,0.8084,3101.5,3101.0,0.24096631]
[1732066168740,0.8084,3101.5,3101.1,0.24096631]
[1732066168984,0.8084,3101.5,3101.2,0.24096631]
[1732066169132,0.8084,3101.5,3101.3,0.24096631]
[1732066169339,0.8084,3101.5,3101.4,0.24097929]
[1732066169644,0.8084,3101.5,3101.4,0.24097738]
[1732066170077,0.8084,3101.5,3100.6,0.3219]
[1732066170273,0.8084,3101.5,3100.7,0.56288709]
[1732066170498,0.8084,3101.5,3100.8,0.24098709]
[1732066170639,0.8084,3101.5,3100.9,0.24098709]
[1732066170839,0.8084,3101.5,3101.0,0.24098709]
[1732066171038,0.8084,3101.5,3101.1,0.24098709]
[1732066171253,0.8084,3101.5,3100.7,0.3219]
[1732066171254,0.8084,3101.5,3101.2,0.24098709]
[1732066171478,0.8084,3101.5,3101.3,0.24098709]
[1732066171780,0.8084,3101.5,3101.4,0.24099739]
[1732066172174,0.8084,3101.5,3101.4,0.24099401]
[1732066172639,0.7575,3102.1,3101.4,0.24099401]
[1732066172837,0.7575,3102.1,3101.0,3.0]
[1732066173065,0.7575,3102.1,3101.0,0.06448178]
[1732066173844,0.7575,3102.1,3101.0,3.06448178]
[1732066174350,0.7575,3102.1,3101.0,0.06448178]
[1732066174550,0.7575,3102.1,3101.0,3.06448178]
[1732066175694,0.7575,3102.1,3101.0,0.06448178]
[1732066175995,0.7575,3102.1,3101.0,3.06448178]
[1732066176353,0.7575,3102.1,3101.0,0.06448178]
[1732066176588,0.7575,3102.1,3101.0,3.06448178]
[1732066176886,0.7575,3102.2,3101.3,0.55]
[1732066177097,0.7575,3102.6,3101.5,3.55]
[1732066177247,0.7575,3102.6,3101.7,0.3219]
[1732066178066,0.7575,3102.6,3101.9,0.3219]
[1732066178406,0.7575,3103.1,3102.0,0.38636556]
[1732066179456,0.7575,3103.1,3102.1,0.55]
[1732066179651,0.7575,3103.1,3102.2,0.06445804]
[1732066180183,0.7634,3103.3,3102.3,3.55]
[1732066180398,0.7634,3104.0,3102.5,0.55]
[1732066180561,0.55,3103.8,3102.5,3.55]
[1732066180898,0.06446412,3103.9,3102.5,0.55]
[1732066181287,0.7634,3103.8,3102.0,0.8719]
[1732066181507,0.82786412,3103.7,3102.0,0.3219]
[1732066182030,0.82786412,3103.7,3102.1,0.55]
[1732066182814,0.82786412,3103.7,3101.8,0.55]
[1732066183524,0.82786412,3103.7,3102.0,0.55]
[1732066184111,0.82786412,3103.7,3102.1,0.06445718]
[1732066187203,0.7634,3103.5,3102.1,0.06445718]
[1732066187404,0.82786412,3103.4,3102.1,0.06445718]
[1732066190023,0.82786412,3103.4,3101.5,0.07445736]
[1732066190315,0.82786412,3103.4,3101.6,0.55]
[1732066190548,0.82786412,3103.4,3101.8,0.55]
[1732066190719,0.82786412,3103.4,3101.9,0.06446239]
[1732066191040,0.82786412,3103.4,3102.2,3.0]
[1732066191602,0.82786412,3103.4,3102.0,0.55]
[1732066191806,0.82786412,3103.4,3101.9,0.06446239]
[1732066191807,0.82786412,3103.4,3102.2,3.0]
[1732066192806,0.7634,3103.4,3102.3,0.06445823]
[1732066193213,0.7634,3103.4,3102.2,3.0]
[1732066193214,0.7634,3103.4,3102.2,0.06445453]
[1732066193414,0.7634,3103.4,3102.2,3.06445453]
[1732066193818,0.7634,3103.4,3102.3,0.55]
[1732066194024,0.06446412,3103.3,3102.3,0.55]
[1732066194222,0.06446412,3103.3,3102.3,0.06445312]
[1732066195946,0.7634,3103.4,3102.3,0.06445312]
[1732066196357,0.7634,3103.4,3102.4,0.55]
[1732066196644,0.7634,3103.4,3102.5,0.06445066]
[1732066198446,0.7634,3103.4,3102.0,0.55]
[1732066198447,0.7634,3103.4,3102.1,0.38635069]
[1732066198648,0.7634,3103.4,3102.2,0.8719]
[1732066198856,0.7634,3103.4,3102.3,0.06445068]
[1732066199016,0.7634,3103.4,3102.3,0.38635068]
[1732066201310,0.7634,3103.4,3102.6,0.3219]
[1732066201514,0.7634,3103.4,3102.7,0.38634552]
[1732066201714,0.7634,3103.9,3103.0,3.0]
[1732066201954,0.7634,3103.9,3103.1,0.06443573]
[1732066202251,0.7634,3103.9,3103.1,3.06443573]
[1732066202675,0.7634,3103.9,3102.4,0.55]
[1732066202676,0.06446412,3103.8,3102.2,0.14362789]
[1732066202960,0.7634,3103.7,3101.4,0.06445359]
[1732066203115,0.7634,3103.5,3101.8,0.06446202]
[1732066203314,3.22185,3103.9,3101.8,0.06446202]
[1732066203315,0.7634,3103.3,3101.8,0.06446202]
[1732066203511,0.7634,3103.1,3101.8,0.06446202]
[1732066203770,0.7634,3103.1,3101.9,0.3219]
[1732066203976,0.7634,3103.1,3102.1,0.3219]
[1732066205464,0.82786412,3103.0,3101.8,3.06445991]
[1732066206130,0.7634,3103.0,3101.8,0.06445991]
[1732066207518,0.7634,3103.0,3101.8,0.38635991]
[1732066207629,0.7634,3103.0,3101.8,0.06445991]
[1732066207837,0.7634,3103.0,3101.6,0.0644643]
[1732066209276,0.7634,3103.0,3102.1,3.0]
[1732066210088,0.7634,3103.0,3101.8,0.06446137]
[1732066210267,0.7634,3103.0,3102.1,3.0]
[1732066210437,0.7634,3103.0,3102.2,0.06446019]
[1732066210976,0.06446412,3103.8,3102.3,0.55]
[1732066211178,0.8247,3103.7,3102.5,0.8719]
[1732066211472,0.8247,3103.7,3102.6,0.38634361]
[1732066211683,0.8247,3103.7,3102.7,0.8719]
[1732066211834,0.8247,3103.7,3102.8,0.0644396]
[1732066212245,0.8247,3103.7,3102.9,0.55]
[1732066212449,0.8247,3103.7,3103.0,0.06443767]
[1732066213277,0.8247,3104.4,3103.5,3.0]
[1732066213434,0.8247,3104.4,3103.6,0.06442868]
[1732066214436,0.8247,3104.4,3103.4,0.55]
[1732066214667,0.8247,3104.4,3103.4,0.0644277]
[1732066216052,0.8247,3104.4,3103.6,3.0]
[1732066217350,0.88916412,3104.3,3103.6,3.0]
[1732066217558,0.88916412,3104.3,3102.4,0.3219]
[1732066217771,0.88916412,3104.3,3102.6,0.3219]
[1732066217940,0.88916412,3104.3,3102.7,0.38634541]
[1732066218287,0.88916412,3104.3,3102.7,0.3219]
[1732066218440,0.8247,3104.1,3102.1,0.38634848]
[1732066218638,0.8247,3103.9,3102.1,0.38634848]
[1732066218865,0.8247,3103.7,3102.1,0.38634848]
[1732066219103,0.88916412,3103.6,3102.1,0.38634848]
[1732066219315,0.8247,3103.6,3101.7,0.3219]
[1732066219501,0.88916412,3103.5,3101.7,0.71018524]
[1732066219981,0.88916412,3103.5,3101.7,0.38635784]
[1732066221311,0.88916412,3103.5,3102.0,3.0]
[1732066221464,0.8247,3103.4,3102.0,3.0]
[1732066221667,0.8247,3103.4,3102.1,0.06446003]
[1732066222068,0.8247,3103.4,3102.0,3.06446003]
[1732066222316,0.8247,3103.2,3102.0,3.06446003]
[1732066222608,3.0,3103.7,3102.0,3.06446003]
[1732066222609,0.88916412,3103.1,3102.0,3.06446003]
[1732066222807,0.88916412,3103.1,3102.0,3.0]
[1732066223008,0.88916412,3103.1,3101.4,0.6457274]
[1732066223314,0.88916412,3103.0,3101.1,0.0644717]
[1732066223619,1.00253282,3102.9,3101.1,0.0644717]
[1732066223765,0.88916412,3102.8,3101.1,0.0644717]
[1732066224410,0.88916412,3102.8,3100.9,0.38637544]
[1732066225129,0.8247,3102.8,3100.9,0.38637544]
[1732066225413,0.8247,3102.8,3101.1,0.3219]
[1732066225414,4.11214412,3102.8,3101.1,0.3219]
[1732066225709,0.769,3102.6,3101.1,0.3219]
[1732066225870,0.769,3102.4,3101.1,0.3219]
[1732066226402,0.42899769,3102.7,3101.1,0.3219]
[1732066226403,0.83346412,3102.3,3101.1,0.3219]
[1732066227099,0.83346412,3102.3,3100.8,0.55]
[1732066227268,0.83346412,3102.3,3100.7,0.38637906]
[1732066227710,0.769,3102.2,3100.7,0.06447906]
[1732066228696,0.769,3102.0,3100.7,0.06447906]
[1732066228873,0.769,3101.8,3100.7,0.06447906]
[1732066229072,0.83346412,3101.7,3100.7,0.06447906]
[1732066229713,0.83346412,3101.7,3100.8,0.55]
[1732066229911,0.769,3102.8,3101.4,3.0]
[1732066230211,0.769,3102.6,3101.5,0.06447368]
[1732066230872,0.769,3102.6,3101.7,3.0]
[1732066231072,0.769,3102.6,3101.5,0.06447368]
[1732066231318,0.769,3102.6,3101.5,0.06446961]
[1732066231695,0.769,3102.6,3101.8,3.55]
[1732066231876,0.769,3102.6,3102.0,0.55]
[1732066232083,0.769,3103.5,3102.5,3.0]
[1732066232282,0.769,3103.5,3102.6,0.06445305]
[1732066232620,0.769,3103.5,3102.3,0.06445122]
[1732066232774,0.769,3103.5,3102.5,3.0]
[1732066232973,0.769,3103.3,3102.5,3.0]
[1732066233179,0.769,3103.3,3102.6,0.23941941]
[1732066233605,0.769,3103.3,3102.5,3.0]
[1732066233806,0.769,3103.3,3102.6,0.23942713]
[1732066234017,0.769,3103.3,3102.0,0.55]
[1732066234187,0.769,3103.3,3102.2,0.55]
[1732066234388,0.769,3103.3,3102.5,3.0]
[1732066234621,0.769,3103.3,3102.6,0.23943403]
[1732066234804,0.769,3103.3,3102.7,0.23943403]
[1732066235112,0.769,3103.3,3102.2,0.55]
[1732066235324,0.769,3103.3,3102.0,0.55]
[1732066235477,0.769,3103.3,3102.5,3.0]
[1732066235815,0.769,3103.1,3101.9,0.06445201]
[1732066236118,0.83346412,3103.0,3101.9,0.06445201]
[1732066236412,0.769,3103.0,3101.9,0.06445201]
[1732066236788,0.769,3103.0,3101.5,3.0]
[1732066236789,0.769,3103.0,3101.6,0.06446156]
[1732066237405,0.769,3103.0,3101.7,0.55]
[1732066237615,0.769,3103.0,3102.0,0.3219]
[1732066237815,0.769,3103.0,3102.1,0.61445376]
[1732066238816,0.769,3103.0,3102.0,0.55]
[1732066239027,0.769,3103.0,3101.9,0.06445378]
[1732066239028,0.769,3103.0,3101.9,0.61445378]
[1732066239314,0.7662,3102.8,3101.8,0.55]
[1732066239692,3.22186,3103.8,3101.6,0.3219]
[1732066239693,0.06446412,3102.7,3101.6,0.3219]
[1732066239891,0.01,3103.8,3101.6,0.3219]
[1732066239892,0.7662,3102.6,3101.6,0.3219]
[1732066240092,3.2225,3103.2,3101.1,0.08012825]
[1732066240093,0.7662,3102.4,3101.5,0.3219]
[1732066240619,0.06446412,3102.3,3101.5,0.3219]
[1732066240826,0.32225,3103.1,3101.2,0.06447353]
[1732066240827,0.8013,3102.2,3101.2,0.06447353]
[1732066241323,0.8013,3102.2,3101.0,0.06447353]
[1732066242328,0.8013,3102.2,3100.8,0.3219]
[1732066242329,0.8013,3102.2,3101.1,0.06447935]
[1732066243326,0.8013,3102.2,3100.9,0.55]
[1732066243487,0.8013,3102.2,3101.5,3.0]
[1732066243986,0.8013,3102.2,3101.1,0.61447938]
[1732066244926,0.8013,3102.2,3100.9,0.55]
[1732066245158,0.8013,3102.2,3101.1,0.55]
[1732066245653,0.8013,3102.0,3101.1,0.55]
[1732066246139,0.8013,3102.0,3101.1,0.06447944]
[1732066247712,0.8013,3102.0,3101.2,0.3219]
[1732066249816,0.8013,3102.0,3101.3,0.61447951]
[1732066250157,0.8013,3102.0,3101.3,3.61447951]
[1732066250655,0.8013,3102.0,3101.3,0.61447951]
[1732066251559,0.8013,3102.0,3101.3,3.61447951]
[1732066252018,0.8013,3102.0,3101.3,0.61447951]
[1732066252217,0.8013,3102.0,3101.3,3.61447951]
[1732066252458,0.06446412,3101.9,3101.0,3.3219]
[1732066252707,0.8013,3101.8,3101.0,0.3219]
[1732066252838,0.8013,3101.8,3101.1,0.06448526]
[1732066253181,0.8013,3101.8,3101.1,0.38638526]
[1732066253737,0.8013,3101.8,3101.2,0.55]
[1732066254050,0.8013,3101.8,3101.2,0.61447476]
[1732066254250,0.8013,3101.8,3101.2,0.55]
[1732066254454,0.8013,3101.8,3101.5,3.0]
[1732066254656,0.8013,3101.8,3101.0,0.3219]
[1732066254874,0.8013,3101.8,3101.1,0.38638031]
[1732066255075,0.8013,3101.8,3101.5,3.0]
[1732066255241,0.8013,3101.8,3101.1,0.38638031]
[1732066255449,0.8013,3101.8,3101.3,3.0]
[1732066255775,0.8013,3101.8,3100.6,0.3219]
[1732066255944,0.8013,3101.8,3101.3,3.0]
[1732066257192,0.8013,3101.7,3101.1,0.3219]
[1732066257467,0.8013,3101.7,3100.8,0.3219]
[1732066257698,0.8013,3101.7,3101.0,0.3219]
[1732066258579,0.8013,3101.7,3101.0,3.3219]
[1732066259209,0.8013,3101.7,3101.1,0.55]
[1732066259502,0.8013,3101.7,3101.3,0.55]
[1732066260012,0.8013,3101.7,3101.1,0.06447815]
[1732066260013,0.8013,3101.7,3101.2,0.55]
[1732066261369,0.8013,3101.7,3101.4,3.0]
[1732066261571,0.8013,3101.7,3101.2,0.93637739]
[1732066261907,0.8013,3102.9,3101.5,0.8719]
[1732066262064,0.8013,3102.9,3101.8,0.55]
[1732066262265,0.8013,3102.9,3101.9,3.0]
[1732066262502,0.8013,3102.9,3101.8,0.61446432]
[1732066262714,0.8013,3102.9,3102.0,3.0]
[1732066262868,0.8013,3102.9,3102.1,0.61445898]
[1732066264011,0.8013,3102.9,3101.7,0.06445637]
[1732066264677,3.22218,3103.5,3102.1,3.0]
[1732066264678,0.8013,3102.7,3102.1,3.0]
[1732066264863,0.8013,3102.7,3101.4,0.38636835]
[1732066265067,0.86576412,3102.6,3101.4,0.38637527]
[1732066265323,0.8013,3102.6,3101.4,0.38637527]
[1732066266196,0.8013,3102.6,3101.8,3.0]
[1732066266367,0.8013,3102.6,3101.9,0.06446486]
[1732066266681,0.8013,3102.6,3102.0,0.3219]
[1732066266862,0.8013,3102.6,3101.5,0.55]
[1732066266863,0.8013,3102.6,3102.1,0.38636279]
[1732066267065,0.8013,3102.6,3102.3,3.0]
[1732066267378,0.8013,3102.6,3102.5,0.55]
[1732066267565,0.8013,3103.7,3102.5,3.55]
[1732066267767,0.8013,3103.7,3102.6,0.06445035]
[1732066268013,0.06446412,3103.6,3102.5,0.55]
[1732066268170,0.8013,3103.5,3102.5,0.55]
[1732066269214,3.07446412,3104.3,3101.6,3.382]
[1732066269215,0.8013,3103.3,3101.6,0.38635003]
[1732066269503,0.01,3103.7,3101.4,0.06446748]
[1732066269504,0.7694,3103.1,3101.4,0.06446748]
[1732066269711,0.7694,3102.9,3101.2,0.06446757]
[1732066269906,0.7694,3102.7,3101.2,0.06446757]
[1732066270068,0.83386412,3102.6,3101.2,0.06446757]
[1732066270274,0.83386412,3102.6,3100.9,0.0644717]
[1732066271295,0.83386412,3102.6,3100.8,0.38637838]
[1732066272570,0.83386412,3102.6,3100.9,0.55]
[1732066272770,0.83386412,3102.6,3100.5,3.01]
[1732066272771,0.83386412,3102.6,3101.1,0.55]
[1732066273322,0.83386412,3102.6,3101.3,3.0]
[1732066273684,0.83386412,3102.6,3100.9,0.0644814]
[1732066273874,0.83386412,3102.6,3101.3,3.0]
[1732066274074,0.83386412,3102.6,3101.0,0.55]
[1732066274419,0.83386412,3102.6,3101.3,3.0]
[1732066274711,0.83386412,3102.6,3101.2,0.55]
[1732066275280,0.83386412,3102.6,3101.3,3.0]
[1732066276177,0.83386412,3102.6,3100.8,0.06448293]
[1732066276489,0.83386412,3102.6,3101.3,3.0]
[1732066277014,0.83386412,3102.6,3100.7,0.55]
[1732066277175,0.83386412,3102.6,3101.3,3.0]
[1732066277509,0.83386412,3102.6,3101.1,3.0]
[1732066277510,0.7694,3102.4,3101.1,3.0]
[1732066277679,0.40568741,3102.5,3100.7,0.55]
[1732066277680,0.7694,3102.2,3100.7,0.55]
[1732066277880,0.83386412,3102.1,3101.1,3.0]
[1732066278413,0.7694,3101.9,3100.7,0.55]
[1732066278619,0.83386412,3101.8,3100.7,0.55]
[1732066279517,0.83386412,3101.8,3100.4,0.55]
[1732066279883,0.83386412,3101.8,3100.4,0.6144911]
[1732066280976,0.83386412,3101.8,3100.7,3.0]
[1732066281580,0.83386412,3101.8,3099.5,0.38599537]
[1732066281925,0.83386412,3101.8,3099.5,0.46714371]
[1732066281926,0.7694,3101.5,3099.5,0.46714371]
[1732066282081,0.83386412,3101.4,3099.5,0.79097111]
[1732066283477,0.83386412,3101.4,3099.5,0.70982803]
[1732066284724,0.83386412,3101.4,3099.6,0.55]
[1732066284929,0.83386412,3101.4,3099.8,0.55]
[1732066285121,0.83386412,3101.4,3099.7,0.06450647]
[1732066285426,3.7635,3101.0,3099.0,0.06451057]